bitfinex-derivatives/quotes_ETHF0:USTF0_20241018
["timestamp","ask_amount","ask_price","bid_price","bid_amount"]
[1729213926601,0.4232,2611.2,2610.7,2.99]
[1729213926790,1.64996,2611.2,2611.0,0.38308]
[1729213926990,1.64996,2611.2,2611.1,0.38307]
[1729213927699,1.64996,2611.2,2610.8,0.7762]
[1729213928502,1.64996,2611.2,2610.5,7.15571]
[1729213928503,3.2078,2611.1,2610.9,0.3831]
[1729213928693,3.59088,2611.1,2610.9,0.3831]
[1729213929305,0.38309,2611.0,2610.9,0.3831]
[1729213930101,0.38309,2611.0,2610.5,0.95791]
[1729213930102,0.3831,2610.9,2610.8,0.38311]
[1729213930304,3.59089,2611.0,2610.8,0.38311]
[1729213930504,3.2078,2611.0,2610.9,0.3831]
[1729213930701,0.38308,2611.1,2611.0,0.38309]
[1729213930894,4.2569,2611.2,2611.0,0.38309]
[1729213931397,0.38307,2611.1,2611.0,0.38309]
[1729213931602,0.38307,2611.1,2610.5,0.95791]
[1729213931805,0.38307,2611.1,2610.9,0.38309]
[1729213932490,0.38307,2611.1,2611.0,0.38309]
[1729213932695,0.38307,2611.1,2610.9,0.38309]
[1729213933298,0.38307,2611.1,2610.5,0.95791]
[1729213933598,0.38307,2611.1,2610.9,0.3831]
[1729213933902,1.2669,2611.2,2611.1,0.38307]
[1729213934201,0.415,2611.2,2611.1,0.38307]
[1729213940207,3.2078,2611.3,2610.8,1.2095]
[1729213940410,0.3946,2611.6,2611.5,0.38301]
[1729213949813,1.7746,2611.6,2611.5,0.38301]
[1729213953918,1.7746,2611.6,2611.4,0.38302]
[1729213954215,1.7746,2611.6,2611.0,1.40900994]
[1729213954216,0.38304,2611.4,2611.2,0.38305]
[1729213954422,0.38308,2611.1,2610.9,0.38309]
[1729213954623,0.38308,2611.1,2610.8,0.38311]
[1729213954624,1.76309,2611.0,2610.8,0.38311]
[1729213954926,1.76312,2610.8,2610.6,0.38314]
[1729213955105,1.7849,2610.7,2610.6,0.38314]
[1729213955307,2.56793,2610.7,2610.5,0.38315]
[1729213955512,1.7901,2610.6,2610.5,0.38315]
[1729213957811,0.4101,2610.6,2610.5,0.38315]
[1729213958211,3.78325,2610.6,2610.4,0.38317]
[1729213958418,3.4001,2610.6,2610.1,4.093]
[1729213958618,3.78325,2610.6,2610.4,0.38317]
[1729213959215,0.79325,2610.6,2610.4,0.38317]
[1729213960013,3.2078,2610.5,2610.4,0.38317]
[1729213961415,3.2078,2610.8,2610.4,9.8304]
[1729213961617,4.4624,2611.1,2611.0,0.38309]
[1729213961824,1.2546,2611.1,2611.0,0.38309]
[1729213970329,0.8494,2611.1,2611.0,0.38309]
[1729213970633,3.2078,2611.4,2611.3,0.38304]
[1729213970834,4.0351,2611.4,2611.3,0.38304]
[1729213971241,0.3984,2611.8,2611.2,2.99]
[1729213971437,0.8,2611.7,2611.0,3.94772]
[1729213971625,1.18299,2611.7,2611.5,0.383]
[1729213971826,0.8,2611.7,2611.6,0.383]
[1729213974339,0.8,2611.7,2611.0,0.95772]
[1729213974533,3.2078,2611.5,2610.9,0.7564]
[1729213974733,2.99,2611.4,2610.7,3.6082]
[1729213975034,0.4089,2611.3,2611.2,0.38306]
[1729213975234,0.8231,2611.3,2611.2,0.38306]
[1729213978638,3.8131,2611.3,2610.6,0.4258]
[1729213978832,0.38308,2611.1,2611.0,0.38308]
[1729213979138,3.598,2611.2,2610.8,0.38311]
[1729213979139,0.38309,2611.0,2610.8,0.38311]
[1729213979330,0.3831,2610.9,2610.8,0.38311]
[1729213979530,0.8029,2610.9,2610.8,0.38311]
[1729213979743,0.4198,2610.9,2610.8,0.38311]
[1729213980242,0.8029,2610.9,2610.8,0.38311]
[1729213980545,0.8029,2610.9,2610.7,0.38312]
[1729213980729,0.4014,2610.8,2610.7,0.38312]
[1729213986565,0.4198,2610.9,2610.4,7.15572]
[1729213986753,0.4198,2610.9,2610.8,0.38312]
[1729213989762,0.8029,2610.9,2610.8,0.38312]
[1729213990163,4.6333,2610.9,2610.8,0.38312]
[1729213990464,0.38312,2610.8,2610.7,0.38312]
[1729213990652,0.4198,2610.9,2610.4,3.2078]
[1729213990856,0.38313,2610.8,2610.6,0.38314]
[1729213991052,0.79803,2610.7,2610.6,0.38314]
[1729213991255,4.2453,2610.7,2610.0,0.4004]
[1729213991463,0.4195,2610.6,2610.5,0.38315]
[1729213991662,4.2499,2610.6,2610.5,0.38315]
[1729213991856,10.2499,2610.6,2610.5,0.38315]
[1729213992061,4.2499,2610.6,2610.5,0.38315]
[1729213996169,3.6227,2610.7,2610.6,0.38314]
[1729213996382,0.4149,2610.7,2610.6,0.38314]
[1729213997565,0.79803,2610.7,2610.6,0.38314]
[1729213997767,4.00583,2610.7,2610.6,0.38314]
[1729213998267,4.00584,2610.7,2610.1,0.3595]
[1729213998463,4.00584,2610.7,2610.6,0.38314]
[1729213998667,3.6227,2610.7,2610.6,0.38314]
[1729213999871,4.00583,2610.7,2610.6,0.38314]
[1729214001269,0.79803,2610.7,2610.6,0.38314]
[1729214001465,4.00583,2610.7,2610.6,0.38314]
[1729214001668,3.6227,2610.7,2610.1,0.3595]
[1729214001870,0.38315,2610.6,2610.0,4.96039]
[1729214002074,0.407,2610.5,2610.4,0.38317]
[1729214002374,0.38317,2610.4,2610.2,0.3832]
[1729214002673,6.58098,2610.4,2610.1,0.38322]
[1729214002973,6.58098,2610.4,2610.2,0.38319]
[1729214003374,6.58098,2610.4,2610.3,0.38319]
[1729214003775,16.41218,2610.4,2610.3,0.38319]
[1729214004878,13.039,2610.4,2610.3,0.38319]
[1729214005178,3.2078,2610.4,2610.3,0.38319]
[1729214010872,7.42217,2610.4,2610.3,0.38319]
[1729214011273,3.59097,2610.4,2610.3,0.38319]
[1729214011671,6.1978,2610.4,2609.8,1.38046]
[1729214011872,0.38319,2610.3,2610.2,0.3832]
[1729214012887,6.58098,2610.4,2610.2,0.3832]
[1729214013379,6.58098,2610.4,2610.3,0.38319]
[1729214013884,10.41218,2610.4,2610.3,0.38319]
[1729214016281,7.20438,2610.4,2610.3,0.38319]
[1729214016677,3.37318,2610.4,2610.3,0.38319]
[1729214019773,1.76318,2610.4,2610.3,0.38319]
[1729214020987,1.76318,2610.4,2610.0,1.38]
[1729214021286,1.38,2610.1,2610.0,1.38]
[1729214022283,1.38,2610.1,2610.0,1.76323]
[1729214029789,1.38,2610.1,2610.0,0.38323]
[1729214035496,3.2078,2610.4,2610.0,11.2112]
[1729214035697,0.822,2610.5,2610.1,1.7397]
[1729214035698,1.38,2610.2,2610.1,1.7397]
[1729214035996,1.38,2610.2,2610.1,0.74292]
[1729214036191,1.38,2610.2,2610.1,0.38322]
[1729214042603,1.7949,2610.3,2610.2,0.3832]
[1729214044103,2.17809,2610.3,2610.2,0.3832]
[1729214044506,1.7949,2610.3,2610.2,0.3832]
[1729214046702,1.7949,2610.3,2610.0,2.38340994]
[1729214046896,1.76321,2610.2,2610.1,0.38321]
[1729214047604,1.38,2610.2,2610.1,0.38321]
[1729214048407,1.7632,2610.2,2610.1,0.38321]
[1729214048714,1.38,2610.2,2610.1,0.38321]
[1729214049308,1.7632,2610.2,2610.1,0.38321]
[1729214049507,1.38,2610.2,2610.1,0.38321]
[1729214055212,0.4149,2610.3,2610.2,0.3832]
[1729214055509,49.51401,2611.6,2610.2,0.3832]
[1729214055510,1.38,2611.1,2611.0,0.38309]
[1729214055696,1.38,2611.1,2610.9,0.38309]
[1729214055896,1.192,2611.0,2610.9,0.38309]
[1729214056103,2.572,2611.0,2610.9,0.38309]
[1729214057007,2.572,2611.0,2610.7,0.99999194]
[1729214057312,1.38,2610.8,2610.7,0.38313]
[1729214060110,1.38,2610.8,2610.5,3.2078]
[1729214060111,0.38314,2610.7,2610.5,3.59095]
[1729214060308,2.2144,2610.6,2610.5,3.59096]
[1729214060508,2.6085,2610.6,2610.5,3.59096]
[1729214061500,1.2285,2610.6,2610.5,4.97096]
[1729214061700,0.3941,2610.6,2610.5,4.97096]
[1729214061906,1.38,2610.8,2610.7,0.38313]
[1729214065911,1.2285,2611.0,2610.9,0.3831]
[1729214066109,2.6085,2611.0,2610.9,1.7631]
[1729214066315,2.6085,2611.0,2610.9,0.3831]
[1729214066812,1.38,2611.3,2611.2,0.38306]
[1729214067111,0.38306,2611.2,2610.6,0.38313]
[1729214067309,1.38,2610.7,2610.3,1.1872]
[1729214067507,1.38,2610.4,2610.3,0.79949]
[1729214067707,1.38,2610.4,2610.3,1.7963]
[1729214068007,1.38,2610.4,2610.3,6.01069]
[1729214068207,1.38,2610.5,2610.3,5.6275]
[1729214068419,1.38,2610.5,2610.4,0.38317]
[1729214069812,0.8166,2610.6,2610.5,0.38316]
[1729214072817,3.2078,2610.9,2610.3,0.4163]
[1729214073021,3.2078,2610.9,2610.8,0.38312]
[1729214075021,3.2078,2610.9,2610.5,0.7628]
[1729214075320,0.7875,2611.1,2609.9,0.99999194]
[1729214075321,6.1978,2610.6,2609.9,0.99999194]
[1729214075516,6.1978,2610.3,2610.0,0.38322]
[1729214075714,0.38321,2610.2,2610.0,0.38322]
[1729214076019,6.1978,2610.3,2609.9,0.38324]
[1729214076020,1.20013,2610.1,2609.9,0.38324]
[1729214076216,0.8169,2610.1,2609.6,3.2078]
[1729214076418,0.8169,2610.1,2610.0,0.38323]
[1729214077924,3.2078,2610.3,2609.7,2.99]
[1729214078122,3.2078,2610.3,2610.2,0.3832]
[1729214078317,3.2078,2610.3,2609.7,2.99]
[1729214078619,3.2078,2610.3,2610.1,0.38321]
[1729214079015,3.591,2610.3,2610.1,0.38321]
[1729214079624,3.59099,2610.3,2610.1,0.38321]
[1729214079818,3.59099,2610.3,2609.8,0.38326]
[1729214080023,3.59099,2610.3,2609.9,0.8346]
[1729214080226,3.59099,2610.3,2610.1,0.3832]
[1729214080423,6.581,2610.3,2610.1,0.38322]
[1729214080614,0.8136,2610.2,2610.1,0.38322]
[1729214080817,1.1968,2610.2,2610.1,0.38322]
[1729214082825,1.1968,2610.2,2609.7,0.828]
[1729214083028,1.1968,2610.2,2610.0,0.38322]
[1729214083825,1.1968,2610.2,2609.8,0.38326]
[1729214084021,1.1968,2610.2,2610.0,0.38322]
[1729214084521,0.8136,2610.2,2610.1,0.38322]
[1729214087131,1.2201,2610.2,2610.1,0.38322]
[1729214095938,2.6001,2610.2,2610.1,1.76322]
[1729214100732,2.6001,2610.2,2610.0,0.38323]
[1729214100933,1.76322,2610.1,2610.0,0.38323]
[1729214101941,1.38,2610.1,2610.0,0.38323]
[1729214102139,1.38,2610.1,2610.0,1.76323]
[1729214102836,2.6001,2610.2,2610.1,0.38322]
[1729214103039,3.59093,2610.7,2610.1,1.76322]
[1729214103228,0.3911,2610.6,2610.5,0.38316]
[1729214103435,1.7711,2610.6,2610.5,1.76316]
[1729214103626,2.1931,2610.6,2610.5,0.38316]
[1729214103833,2.57625,2610.6,2610.4,1.76316]
[1729214104127,2.57625,2610.6,2610.2,0.3598]
[1729214104128,2.1931,2610.6,2610.5,1.76316]
[1729214104533,2.1931,2610.6,2610.5,0.38316]
[1729214106036,0.8131,2610.6,2610.5,1.76316]
[1729214106237,0.4228,2610.7,2610.6,0.38314]
[1729214106431,0.4228,2610.7,2610.6,1.76314]
[1729214106649,0.3883,2610.8,2610.7,0.38313]
[1729214106832,0.3883,2610.8,2610.7,1.76313]
[1729214107140,1.7683,2610.8,2610.7,1.76313]
[1729214107344,0.7809,2610.8,2610.7,1.76313]
[1729214107932,0.3883,2610.8,2610.7,0.38313]
[1729214108843,0.8452,2611.1,2610.6,2.99]
[1729214109140,0.8452,2611.1,2611.0,0.38309]
[1729214109141,1.2372,2611.1,2611.0,0.38309]
[1729214110551,3.2078,2611.6,2611.5,0.38301]
[1729214110845,1.18289,2611.7,2611.5,0.38301]
[1729214111243,0.38303,2611.5,2611.2,0.38305]
[1729214111439,0.78034,2611.4,2610.9,1.005]
[1729214111636,0.3888,2611.3,2610.8,0.38311]
[1729214111843,2.99,2611.1,2610.3,5.70777985]
[1729214112032,2.99,2611.1,2610.4,0.95793]
[1729214112242,3.59087,2611.2,2610.9,0.38309]
[1729214112442,3.2078,2611.2,2610.9,0.38309]
[1729214112746,0.38308,2611.1,2610.9,0.38309]
[1729214112948,0.3973,2611.0,2610.9,0.38309]
[1729214113742,0.3973,2611.0,2610.8,0.38311]
[1729214113743,0.78039,2611.0,2610.8,0.38311]
[1729214113942,0.78039,2611.0,2610.3,7.19779194]
[1729214113943,0.8046,2610.9,2610.3,7.19779194]
[1729214114144,1.18771,2610.9,2610.7,0.38312]
[1729214114335,4.0124,2610.9,2610.7,0.38312]
[1729214114534,0.4158,2610.9,2610.8,3.37312]
[1729214114933,0.4158,2610.9,2610.8,0.38312]
[1729214115549,3.2078,2611.3,2611.2,0.38306]
[1729214115853,3.6236,2611.3,2611.2,0.38306]
[1729214117349,3.2078,2611.3,2611.2,0.38306]
[1729214117646,3.2078,2611.3,2611.2,3.37306]
[1729214118752,0.4239,2611.4,2611.2,2.99]
[1729214118941,0.4239,2611.4,2611.3,0.38304]
[1729214119144,0.7999,2611.5,2611.2,2.99]
[1729214119343,0.7999,2611.5,2611.4,0.38303]
[1729214120154,0.7999,2611.5,2611.2,2.99]
[1729214120155,0.3988,2611.7,2611.2,2.99]
[1729214120348,0.3988,2611.7,2611.6,0.383]
[1729214120653,3.2078,2611.8,2611.7,0.38298]
[1729214120849,0.4115,2612.0,2611.9,0.38295]
[1729214121050,0.4115,2612.0,2611.9,3.37295]
[1729214122253,0.4115,2612.0,2611.9,0.38295]
[1729214123764,3.5985,2612.3,2612.2,0.38291]
[1729214125444,3.5985,2612.3,2612.1,2.99]
[1729214125445,0.4085,2612.7,2612.1,2.99]
[1729214125648,0.4085,2612.7,2612.6,0.38285]
[1729214128151,0.38279,2613.1,2612.9,0.3828]
[1729214128359,3.59057,2613.2,2612.7,2.99]
[1729214128652,3.2078,2613.2,2613.1,0.38278]
[1729214129062,0.8438,2613.3,2613.2,0.38276]
[1729214129362,0.8438,2613.3,2613.2,3.37276]
[1729214129757,0.8438,2613.3,2613.2,0.38276]
[1729214130353,0.8438,2613.3,2612.9,2.99]
[1729214130557,0.8438,2613.3,2613.2,0.38276]
[1729214131957,3.2078,2613.5,2613.4,0.38273]
[1729214133361,3.2078,2613.5,2613.4,3.37273]
[1729214135158,2.63324334,2613.5,2613.4,2.99]
[1729214135359,2.63324334,2613.5,2613.4,3.37273]
[1729214135766,2.63324334,2613.5,2613.4,2.99]
[1729214135956,2.63324334,2613.5,2613.4,3.37273]
[1729214136959,3.01596334,2613.5,2613.4,2.99]
[1729214137165,2.63324334,2613.5,2613.4,2.99]
[1729214137553,2.63324334,2613.5,2613.4,3.37273]
[1729214138368,0.78092,2613.6,2613.4,3.37273]
[1729214139858,0.3982,2613.6,2613.4,2.99]
[1729214140165,0.78091,2613.6,2613.4,3.37273]
[1729214140862,0.38272,2613.5,2613.4,2.99]
[1729214141061,0.38272,2613.5,2613.3,0.38274]
[1729214141367,0.78092,2613.6,2613.2,0.3975]
[1729214141565,0.78092,2613.6,2613.4,0.38273]
[1729214142369,0.3982,2613.6,2613.5,0.38272]
[1729214142555,0.78092,2613.6,2613.4,0.38273]
[1729214143167,0.78092,2613.6,2613.3,2.99]
[1729214143168,0.3982,2613.6,2613.5,0.38272]
[1729214143469,0.3982,2613.6,2613.3,2.99]
[1729214143670,3.2078,2613.7,2613.3,2.99]
[1729214143868,0.3905,2613.6,2613.5,0.38271]
[1729214145366,0.77321,2613.6,2613.4,0.38273]
[1729214145870,0.3905,2613.6,2613.5,0.38272]
[1729214146468,0.3905,2613.6,2613.5,3.37272]
[1729214146666,0.8177,2613.8,2613.6,0.38271]
[1729214146969,0.8177,2613.8,2613.7,0.38269]
[1729214147272,1.2181,2613.8,2613.7,0.38269]
[1729214147864,0.819,2613.8,2613.7,3.37269]
[1729214148056,0.80514,2614.1,2613.7,2.99]
[1729214148258,0.7968,2614.1,2614.0,3.37265]
[1729214148462,0.7968,2614.1,2614.0,2.99]
[1729214148659,0.7968,2614.1,2614.0,3.37265]
[1729214149066,0.4225,2614.4,2614.1,0.38263]
[1729214149261,0.4225,2614.4,2614.0,3.37264]
[1729214149262,0.38262,2614.2,2614.0,3.37264]
[1729214149468,0.7968,2614.3,2614.1,0.38263]
[1729214149676,1.17941,2614.3,2614.1,0.38263]
[1729214149872,0.3826,2614.4,2614.2,3.37261]
[1729214150174,0.3826,2614.3,2614.2,2.99]
[1729214150469,0.3826,2614.3,2614.2,3.37262]
[1729214150670,0.3826,2614.3,2614.2,6.8148]
[1729214150876,0.3826,2614.3,2614.2,7.19742]
[1729214151276,0.3826,2614.3,2614.2,6.8148]
[1729214152971,0.3826,2614.4,2614.2,7.19741]
[1729214153177,0.3826,2614.3,2614.2,3.37261]
[1729214153475,0.3826,2614.3,2614.2,2.99]
[1729214153670,0.3826,2614.3,2614.2,3.37262]
[1729214153879,0.3826,2614.4,2614.2,3.37262]
[1729214155868,0.3826,2614.3,2614.2,2.99]
[1729214156070,0.3826,2614.3,2613.9,3.2078]
[1729214156071,0.38263,2614.2,2614.0,3.37264]
[1729214156273,0.3885,2614.1,2614.0,3.37264]
[1729214157269,1.60143,2614.1,2614.0,3.37264]
[1729214157483,1.2188,2614.1,2613.8,2.99]
[1729214157681,0.38266,2614.0,2613.8,3.37267]
[1729214157884,0.38266,2614.0,2613.9,0.38266]
[1729214158083,0.38266,2614.0,2613.8,3.37267]
[1729214160482,1.2188,2614.1,2613.6,2.99]
[1729214160689,0.38269,2613.7,2613.6,2.99]
[1729214160875,3.2078,2613.8,2613.6,2.99]
[1729214161081,0.429,2613.7,2613.6,3.3727]
[1729214161700,0.429,2613.7,2613.6,2.99]
[1729214161998,0.81169,2613.7,2613.6,2.99]
[1729214162191,0.81169,2613.7,2613.6,3.37271]
[1729214162390,0.81169,2613.7,2613.6,2.99]
[1729214162588,1.22169,2613.7,2613.6,2.99]
[1729214163200,1.22169,2613.7,2613.6,3.37271]
[1729214163393,0.839,2613.7,2613.6,3.37271]
[1729214164089,0.429,2613.7,2613.6,3.37271]
[1729214164296,0.79266,2614.0,2613.8,0.38267]
[1729214164495,0.79266,2614.0,2613.9,3.37266]
[1729214164692,0.41,2614.0,2613.9,3.37266]
[1729214165598,0.79265,2614.0,2613.9,3.37266]
[1729214165795,0.41,2614.0,2613.9,3.37266]
[1729214165996,0.41,2614.0,2613.7,0.4117]
[1729214165997,0.79265,2614.0,2613.8,0.38267]
[1729214166297,0.41,2614.0,2613.9,0.38266]
[1729214166499,3.638,2614.1,2614.0,0.38265]
[1729214166801,4.02064,2614.1,2613.9,3.37265]
[1729214167100,0.80955,2614.0,2613.9,2.99]
[1729214167302,0.4269,2614.0,2613.9,3.37266]
[1729214168905,0.4269,2614.0,2613.9,2.99]
[1729214168906,0.80955,2614.0,2613.9,2.99]
[1729214172808,0.80955,2614.0,2613.7,2.99]
[1729214172809,0.38268,2613.8,2613.7,2.99]
[1729214173005,0.38274,2613.4,2613.2,3.2078]
[1729214173208,0.38275,2613.3,2613.2,3.2078]
[1729214173404,1.21265,2613.3,2613.2,3.2078]
[1729214173807,5.03905,2613.3,2613.2,3.2078]
[1729214174108,0.38281,2612.9,2612.7,0.38284]
[1729214174310,0.4203,2613.2,2612.6,2.99]
[1729214174505,3.2078,2613.0,2612.6,2.99]
[1729214174914,0.4203,2613.2,2612.5,3.2078]
[1729214174915,0.38278,2613.1,2612.8,3.37282]
[1729214175113,0.3828,2613.0,2612.8,2.99]
[1729214175419,0.4203,2613.2,2612.8,2.99]
[1729214175612,0.38281,2612.9,2612.8,2.99]
[1729214177409,3.2078,2613.0,2612.5,3.2078]
[1729214177608,3.2078,2612.7,2612.3,2.99]
[1729214177813,3.2078,2612.7,2612.1,2.99]
[1729214177814,0.8123,2612.6,2612.1,2.99]
[1729214178121,0.8123,2612.6,2611.9,2.99]
[1729214178122,0.38294,2612.1,2611.9,2.99]
[1729214178329,0.4111,2612.0,2611.9,2.99]
[1729214178819,0.4111,2612.0,2611.9,3.37295]
[1729214178820,0.8287,2612.0,2611.9,3.37295]
[1729214179419,0.8287,2612.0,2611.9,2.99]
[1729214179624,0.8287,2612.0,2611.8,3.2078]
[1729214179914,0.38295,2611.9,2611.8,3.2078]
[1729214180515,0.8287,2612.0,2611.5,3.37301]
[1729214180712,0.38299,2611.7,2611.5,2.99]
[1729214180913,0.38297,2611.8,2611.5,3.37301]
[1729214181111,0.38297,2611.9,2611.5,3.37301]
[1729214181317,0.8287,2612.0,2611.5,2.99]
[1729214181617,0.38298,2611.8,2611.5,3.37301]
[1729214184217,0.38296,2611.9,2611.5,2.99]
[1729214184518,0.38298,2611.8,2611.5,3.373]
[1729214184721,0.38296,2611.9,2611.7,2.99]
[1729214184921,0.38296,2611.9,2611.7,3.37298]
[1729214185920,0.38296,2611.9,2611.7,2.99]
[1729214186116,0.38296,2611.9,2611.7,3.37298]
[1729214186518,4.0365,2612.0,2611.7,2.99]
[1729214186709,0.38296,2611.9,2611.7,2.99]
[1729214187316,0.38297,2611.8,2611.7,2.99]
[1729214187914,0.38296,2611.9,2611.7,3.37298]
[1729214188120,0.38297,2611.8,2611.7,2.99]
[1729214188313,3.8288,2611.9,2611.4,0.38302]
[1729214188514,0.383,2611.6,2611.4,0.38302]
[1729214188715,0.3906,2611.5,2611.4,0.38302]
[1729214189019,0.3906,2611.5,2611.4,3.37302]
[1729214191123,0.3906,2611.5,2611.1,7.3008]
[1729214191124,0.38304,2611.4,2611.2,2.99]
[1729214191426,3.99353,2611.4,2611.2,2.99]
[1729214191624,3.6105,2611.4,2611.2,2.99]
[1729214191924,0.38304,2611.3,2611.2,2.99]
[1729214192318,3.99353,2611.4,2611.2,3.37306]
[1729214192513,3.6105,2611.4,2611.2,2.99]
[1729214192822,3.6105,2611.4,2611.0,0.4171]
[1729214192823,0.38304,2611.3,2611.0,3.79018]
[1729214193020,3.6105,2611.4,2611.0,3.4071]
[1729214193326,3.6105,2611.4,2611.2,3.37306]
[1729214193522,3.99353,2611.4,2611.2,3.37306]
[1729214194326,3.6105,2611.4,2611.2,3.37306]
[1729214194527,3.99353,2611.4,2611.2,3.37306]
[1729214195036,3.6105,2611.4,2611.2,2.99]
[1729214195227,3.99353,2611.4,2611.2,3.37305]
[1729214195830,3.6105,2611.4,2611.2,3.37305]
[1729214196327,3.99353,2611.4,2611.2,3.37305]
[1729214198223,3.41848459,2611.4,2611.2,3.37305]
[1729214198422,3.2078,2611.4,2610.7,6.1978]
[1729214198630,3.2078,2611.4,2610.8,0.4214]
[1729214198833,0.38304,2611.3,2610.8,0.4214]
[1729214199026,0.38313,2610.8,2610.5,0.74295]
[1729214199235,0.38313,2610.8,2610.5,1.16435]
[1729214199421,4.01703,2610.7,2610.5,0.80455]
[1729214199621,3.6339,2610.7,2610.3,2.99]
[1729214200033,0.38314,2610.6,2610.4,0.38317]
[1729214201036,4.01704,2610.7,2610.5,0.38316]
[1729214201427,4.01704,2610.7,2610.2,0.8013]
[1729214201428,0.38316,2610.5,2610.2,0.8013]
[1729214201627,0.38316,2610.5,2610.2,0.4181]
[1729214201829,3.2078,2610.4,2610.2,0.80129]
[1729214203141,3.2078,2610.4,2610.3,0.38319]
[1729214203722,2.24902406,2610.4,2610.3,0.38319]
[1729214203922,0.4261,2610.7,2610.3,2.99]
[1729214203923,3.6339,2610.7,2610.3,2.99]
[1729214204128,0.4261,2610.7,2610.6,0.38314]
[1729214207432,0.80923,2610.7,2610.6,0.38314]
[1729214207633,0.4261,2610.7,2610.6,0.38314]
[1729214207933,0.4261,2610.7,2610.3,2.99]
[1729214208133,0.4261,2610.7,2610.6,0.38314]
[1729214211344,3.2078,2611.1,2611.0,0.38309]
[1729214213029,0.4254,2611.4,2611.0,3.37309]
[1729214213230,3.2078,2611.7,2611.5,0.38301]
[1729214213231,0.4124,2611.6,2611.5,0.38301]
[1729214216538,18.71430783,2612.4,2611.5,12.8188]
[1729214216740,0.3907,2612.3,2612.0,0.38293]
[1729214216946,0.77361,2612.3,2612.0,0.38293]
[1729214217243,0.3907,2612.3,2611.6,3.6343]
[1729214217445,3.2078,2612.1,2611.9,0.38294]
[1729214217745,3.59073,2612.1,2611.9,0.38294]
[1729214218342,3.2078,2612.1,2611.6,3.6343]
[1729214218645,3.59074,2612.1,2611.9,0.38295]
[1729214219943,3.2078,2612.1,2611.9,0.38295]
[1729214220248,3.59073,2612.1,2611.9,0.38295]
[1729214220443,3.59073,2612.1,2611.6,3.6343]
[1729214220444,0.38295,2612.0,2611.6,3.6343]
[1729214220644,3.59077,2611.8,2611.6,0.38299]
[1729214220948,0.4291,2611.7,2611.3,0.3954]
[1729214221145,0.81209,2611.7,2611.5,0.38301]
[1729214221645,0.4291,2611.7,2611.3,0.3954]
[1729214221846,0.4291,2611.7,2611.6,0.383]
[1729214222250,0.4291,2611.7,2611.3,0.3954]
[1729214222449,0.81209,2611.7,2611.5,0.38301]
[1729214222847,0.4291,2611.7,2611.6,0.383]
[1729214223346,3.2078,2611.8,2611.7,0.38298]
[1729214224047,3.2078,2611.8,2611.7,4.21178]
[1729214224251,3.2078,2611.8,2611.7,0.38298]
[1729214224438,3.2078,2611.8,2611.7,4.21178]
[1729214224838,3.59073,2612.1,2611.7,3.8288]
[1729214225049,3.59073,2612.1,2611.7,0.38298]
[1729214225050,3.2078,2612.1,2611.7,0.38298]
[1729214225347,3.2078,2612.1,2611.6,2.99]
[1729214225654,0.38297,2611.8,2611.6,0.38299]
[1729214225852,0.4201,2611.7,2611.6,0.38299]
[1729214226057,0.4201,2611.7,2611.2,4.19410691]
[1729214226350,0.4201,2611.7,2611.5,0.38301]
[1729214226351,0.4215,2611.6,2611.5,0.38301]
[1729214227053,0.4201,2611.7,2611.2,3.2078]
[1729214227253,0.80309,2611.7,2611.5,0.383]
[1729214227450,0.4201,2611.7,2611.6,0.383]
[1729214228451,3.2078,2611.8,2611.7,0.38298]
[1729214228842,0.3986,2612.1,2611.7,16.0266]
[1729214229054,0.4168,2612.4,2612.3,0.3829]
[1729214230050,0.79969,2612.4,2612.2,0.3829]
[1729214230546,0.79969,2612.4,2612.1,0.77331]
[1729214230547,0.3829,2612.3,2612.1,0.77331]
[1729214230741,6.818,2612.3,2612.0,3.2078]
[1729214230947,0.38292,2612.1,2612.0,3.2078]
[1729214231147,0.8054,2612.2,2612.1,0.38292]
[1729214232155,5.01631,2612.2,2612.0,3.59073]
[1729214232348,1.18831,2612.2,2612.0,3.59073]
[1729214232754,1.18831,2612.2,2612.0,0.38293]
[1729214233347,1.18831,2612.2,2611.9,0.38295]
[1729214233545,1.18831,2612.2,2612.0,0.38293]
[1729214235043,0.8054,2612.2,2612.0,0.38293]
[1729214235249,0.38294,2612.1,2612.0,0.38293]
[1729214236158,1.18832,2612.2,2612.0,0.38293]
[1729214236652,0.8054,2612.2,2612.0,0.38293]
[1729214236857,1.18832,2612.2,2612.0,0.38293]
[1729214237453,0.8054,2612.2,2612.0,0.38293]
[1729214237755,1.18832,2612.2,2612.0,0.38293]
[1729214238760,0.8054,2612.2,2612.1,0.38292]
[1729214239254,1.18831,2612.2,2612.1,0.38292]
[1729214239452,3.6246,2612.4,2612.3,0.3829]
[1729214239656,3.2078,2612.4,2612.3,3.3729]
[1729214241365,0.3901,2612.6,2612.3,2.99]
[1729214241557,0.4186,2612.9,2612.8,0.38282]
[1729214241859,4.0191,2613.0,2612.8,0.38281]
[1729214243264,4.0191,2613.0,2612.5,2.99]
[1729214243464,4.0191,2613.0,2612.8,0.38281]
[1729214244271,3.6363,2613.0,2612.9,0.38281]